bitfinex/quotes_BTCUSD_20240101
["timestamp","ask_amount","ask_price","bid_price","bid_amount"]
[1704098315419,0.06836802,42517.0,42513.0,0.0468]
[1704098315974,0.05636802,42517.0,42513.0,0.0468]
[1704098316206,0.06736802,42517.0,42513.0,0.0468]
[1704098316584,0.07936802,42517.0,42513.0,0.04596]
[1704098318572,0.07936802,42517.0,42512.0,0.27248]
[1704098319017,0.07936802,42517.0,42512.0,0.2219]
[1704098319207,0.07936802,42517.0,42512.0,0.26756]
[1704098319370,0.05636802,42517.0,42512.0,0.26756]
[1704098319573,0.06836802,42517.0,42512.0,0.2219]
[1704098319817,0.07936802,42517.0,42512.0,0.2219]
[1704098320395,0.03678758,42516.0,42512.0,0.2219]
[1704098320782,0.07936802,42517.0,42512.0,0.2219]
[1704098320987,0.03678781,42516.0,42512.0,0.2219]
[1704098321382,0.32637294,42516.0,42512.0,0.2219]
[1704098321626,0.34937294,42515.0,42510.0,0.433]
[1704098321840,0.03678781,42514.0,42510.0,0.433]
[1704098322843,0.04378781,42514.0,42510.0,0.433]
[1704098323061,0.03678781,42513.0,42510.0,0.433]
[1704098324378,0.04178781,42513.0,42510.0,0.433]
[1704098324604,0.005,42513.0,42510.0,0.433]
[1704098325248,0.011,42513.0,42510.0,0.433]
[1704098329428,0.06736802,42513.0,42510.0,0.433]
[1704098332424,0.05636802,42512.0,42510.0,0.433]
[1704098333708,0.06036802,42512.0,42510.0,0.433]
[1704098334344,0.06436802,42512.0,42510.0,0.433]
[1704098336075,0.05636802,42511.0,42510.0,0.433]
[1704098337299,0.06136802,42511.0,42510.0,0.433]
[1704098340526,0.06136802,42511.0,42510.0,0.501274]
[1704098340974,0.06136802,42511.0,42510.0,0.557854]
[1704098344511,0.005,42511.0,42510.0,0.557854]
[1704098350345,0.005,42511.0,42510.0,0.48958]
[1704098350554,0.005,42511.0,42510.0,0.433]
[1704098350781,0.005,42511.0,42510.0,0.47932]
[1704098350996,0.005,42511.0,42510.0,0.433]
[1704098351632,0.005,42511.0,42510.0,0.47854]
[1704098351837,0.005,42511.0,42510.0,0.433]
[1704098352258,0.005,42511.0,42510.0,0.48028]
[1704098352647,0.005,42511.0,42510.0,0.433]
[1704098353467,0.005,42511.0,42510.0,0.48658]
[1704098353705,0.005,42511.0,42510.0,0.52006386]
[1704098354534,0.005,42511.0,42510.0,0.433]
[1704098354866,0.005,42511.0,42510.0,0.48544]
[1704098355497,0.005,42511.0,42510.0,0.433]
[1704098355713,0.005,42511.0,42510.0,0.48562]
[1704098356332,0.005,42511.0,42510.0,0.53096218]
[1704098356746,0.005,42511.0,42510.0,0.6245084]
[1704098359560,0.005,42511.0,42510.0,0.57916622]
[1704098360132,0.005,42511.0,42510.0,0.48562]
[1704098387479,0.005,42511.0,42510.0,0.433]
[1704098387690,0.005,42511.0,42510.0,0.48568]
[1704098389909,0.005,42511.0,42510.0,0.433]
[1704098390070,0.005,42511.0,42510.0,0.48952]
[1704098390836,0.005,42511.0,42510.0,0.59388642]
[1704098393924,0.005,42511.0,42510.0,0.48952]
[1704098410617,0.005,42511.0,42510.0,0.48933]
[1704098410830,0.005,42511.0,42510.0,0.43281]
[1704098411046,0.005,42511.0,42510.0,0.49437]
[1704098423760,0.005,42511.0,42510.0,0.54757152]
[1704098425645,0.005,42511.0,42510.0,0.64277867]
[1704098426656,0.005,42511.0,42510.0,0.77049867]
[1704098426898,0.005,42511.0,42510.0,1.20371578]
[1704098427012,0.005,42511.0,42510.0,1.29779578]
[1704098427512,0.005,42511.0,42510.0,1.20851578]
[1704098427755,0.002,42511.0,42510.0,1.20851578]
[1704098427976,0.002,42511.0,42510.0,1.80376424]
[1704098428239,0.05647784,42521.0,42514.0,0.01]
[1704098428489,0.094161,42524.0,42518.0,0.1]
[1704098428730,0.05647784,42527.0,42520.0,0.1]
[1704098428962,0.05647784,42528.0,42521.0,0.031]
[1704098429199,0.08912782,42529.0,42521.0,0.21212]
[1704098429440,0.14124503,42532.0,42522.0,0.30744]
[1704098429673,0.470229,42533.0,42522.0,0.30744]
[1704098429674,0.26999313,42531.0,42522.0,0.30744]
[1704098429936,0.007,42528.0,42523.0,0.0651]
[1704098430176,0.007,42528.0,42524.0,0.04298]
[1704098430421,0.009,42529.0,42524.0,0.04298]
[1704098430631,0.009,42529.0,42525.0,0.04848]
[1704098430850,0.3,42530.0,42525.0,0.04848]
[1704098431062,0.007,42528.0,42525.0,0.04848]
[1704098431470,0.007,42528.0,42525.0,0.09452472]
[1704098432119,0.007,42528.0,42526.0,0.0528]
[1704098432120,0.014,42528.0,42526.0,0.0528]
[1704098432326,0.470229,42533.0,42526.0,0.0528]
[1704098432327,0.14124503,42537.0,42526.0,0.0528]
[1704098432542,0.007,42528.0,42527.0,0.2442]
[1704098432788,0.007,42528.0,42527.0,0.36089381]
[1704098433004,0.01,42530.0,42527.0,0.42167381]
[1704098433211,0.007,42528.0,42527.0,0.42167381]
[1704098433414,0.094136,42533.0,42528.0,0.0546]
[1704098433656,0.007,42528.0,42527.0,0.42401381]
[1704098433861,0.007,42528.0,42527.0,0.42425381]
[1704098436515,0.007,42528.0,42527.0,0.42525381]
[1704098436516,0.014,42528.0,42527.0,0.42525381]
[1704098437694,0.014,42528.0,42527.0,0.87021381]
[1704098438342,0.007,42528.0,42527.0,0.86921381]
[1704098438575,0.3,42539.0,42530.0,0.1]
[1704098438808,0.53321711,42539.0,42531.0,0.03]
[1704098438932,0.53321711,42539.0,42531.0,0.34094]
[1704098439194,0.53321711,42539.0,42532.0,0.0606]
[1704098439195,0.094125,42538.0,42532.0,0.0606]
[1704098439402,0.394125,42538.0,42532.0,0.0606]
[1704098440270,0.406125,42538.0,42532.0,0.0616]
[1704098440480,0.406125,42538.0,42533.0,0.04339]
[1704098440702,0.44296532,42538.0,42534.0,0.04524]
[1704098440927,0.44296532,42538.0,42533.0,0.09511]
[1704098441379,0.43096532,42538.0,42533.0,0.09511]
[1704098441825,0.44296532,42538.0,42533.0,0.09611]
[1704098442234,0.44296532,42538.0,42534.0,0.05099684]
[1704098442449,0.45396532,42538.0,42534.0,0.05099684]
[1704098442655,0.44296532,42538.0,42534.0,0.05099684]
[1704098443083,0.44196532,42538.0,42534.0,0.05099684]
[1704098443291,0.023,42537.0,42534.0,0.001]
[1704098443504,0.55621711,42537.0,42534.0,0.001]
[1704098443931,0.470201,42535.0,42534.0,0.001]
[1704098444134,0.72641811,42535.0,42534.0,0.001]
[1704098444616,0.72641811,42535.0,42528.0,0.05346]
[1704098444862,0.023,42534.0,42528.0,0.05346]
[1704098446218,0.028,42534.0,42528.0,0.05346]
[1704098446434,0.034,42534.0,42528.0,0.05446]
[1704098453248,0.034,42534.0,42528.0,0.12258504]
[1704098453663,0.034,42534.0,42530.0,0.03882959]
[1704098454043,0.034,42534.0,42531.0,0.2311]
[1704098454264,0.034,42534.0,42531.0,0.29452]
[1704098454458,0.028,42534.0,42532.0,0.0543]
[1704098454618,0.034,42534.0,42532.0,0.09672296]
[1704098455135,0.023,42534.0,42533.0,0.04608]
[1704098455358,0.023,42536.0,42533.0,0.04608]
[1704098455584,0.011,42534.0,42533.0,0.04608]
[1704098455810,0.029,42534.0,42533.0,0.04608]
[1704098456027,0.029,42534.0,42533.0,0.08202325]
[1704098456028,0.034,42534.0,42533.0,0.08202325]
[1704098456289,0.029,42534.0,42533.0,0.08202325]
[1704098456503,0.006,42534.0,42533.0,0.27352192]
[1704098456710,0.011,42534.0,42533.0,0.27352192]
[1704098457136,0.005,42534.0,42533.0,0.27352192]
[1704098457347,0.011,42534.0,42533.0,0.27452192]
[1704098458255,0.011,42534.0,42533.0,0.37452192]
[1704098460214,0.011,42534.0,42533.0,0.33857867]
[1704098463126,0.011,42534.0,42533.0,0.17516]
[1704098465297,0.011,42534.0,42533.0,0.21747096]
[1704098468769,0.011,42534.0,42533.0,0.17516]
[1704098469409,0.011,42534.0,42533.0,0.15794]
[1704098475825,0.011,42534.0,42533.0,0.20395676]
[1704098479639,0.011,42534.0,42533.0,0.26846244]
[1704098481146,0.011,42534.0,42533.0,0.20395676]
[1704098481375,0.011,42534.0,42533.0,0.15794]
[1704098483317,0.011,42534.0,42533.0,0.20305181]
[1704098489754,0.011,42534.0,42533.0,0.15794]
[1704098491779,0.011,42534.0,42533.0,0.001]
[1704098491995,0.07077127,42534.0,42533.0,0.001]
[1704098492205,0.034,42534.0,42533.0,0.001]
[1704098492421,0.07077127,42534.0,42533.0,0.001]
[1704098493247,0.034,42534.0,42533.0,0.001]
[1704098496222,0.36020956,42534.0,42533.0,0.001]
[1704098496359,1.07455889,42534.0,42533.0,0.001]
[1704098496758,0.60434689,42534.0,42533.0,0.001]
[1704098498229,0.37112978,42534.0,42533.0,0.001]
[1704098498652,0.15510232,42534.0,42533.0,0.001]
[1704098500395,0.1183296,42534.0,42533.0,0.001]
[1704098501480,0.034,42534.0,42533.0,0.001]
[1704098501887,0.034,42534.0,42533.0,0.032716]
[1704098502308,0.09038339,42534.0,42533.0,0.032716]
[1704098503644,0.09038339,42534.0,42533.0,0.001]
[1704098505750,0.034,42534.0,42533.0,0.001]
[1704098511379,0.09038339,42534.0,42533.0,0.001]
[1704098513022,0.034,42534.0,42533.0,0.001]
[1704098520032,0.07084141,42534.0,42533.0,0.001]
[1704098520236,0.034,42534.0,42533.0,0.001]
[1704098522555,0.12715635,42534.0,42533.0,0.001]
[1704098522987,0.1639981,42534.0,42533.0,0.001]
[1704098524045,0.10761471,42534.0,42533.0,0.001]
[1704098524267,0.1639981,42534.0,42533.0,0.001]
[1704098526092,0.10761471,42534.0,42533.0,0.0271]
[1704098528368,0.1639981,42534.0,42533.0,0.0271]
[1704098530400,0.1639981,42534.0,42533.0,0.001]
[1704098533263,0.38002556,42534.0,42533.0,0.001]
[1704098533473,0.1639981,42534.0,42533.0,0.001]
[1704098534306,0.19194431,42534.0,42533.0,0.001]
[1704098534745,0.10761471,42534.0,42533.0,0.001]
[1704098535345,0.22005418,42534.0,42533.0,0.001]
[1704098536528,0.45327129,42534.0,42533.0,0.001]
[1704098536744,0.66929875,42534.0,42533.0,0.001]
[1704098537391,0.69740862,42534.0,42533.0,0.001]
[1704098538027,0.55685928,42534.0,42533.0,0.001]
[1704098539608,0.66977839,42534.0,42533.0,0.001]
[1704098544278,0.43656128,42534.0,42533.0,0.0271]
[1704098544493,0.40833249,42534.0,42533.0,0.0271]
[1704098544716,0.19230503,42534.0,42533.0,0.0271]
[1704098546410,0.19230348,42534.0,42533.0,0.0271]
[1704098548989,0.22053382,42534.0,42533.0,0.0271]
[1704098549192,0.43656128,42534.0,42533.0,0.0271]
[1704098549621,0.22053382,42534.0,42533.0,0.0271]
[1704098550043,0.22053382,42534.0,42533.0,0.001]
[1704098551102,0.34083182,42534.0,42533.0,0.001]
[1704098551345,0.69740862,42534.0,42533.0,0.001]
[1704098551560,0.55685928,42534.0,42533.0,0.001]
[1704098551971,0.34083182,42534.0,42533.0,0.001]
[1704098554019,0.48197912,42534.0,42533.0,0.001]
[1704098554441,0.69800658,42534.0,42533.0,0.001]
[1704098554909,0.55685928,42534.0,42533.0,0.001]
[1704098555323,0.69800658,42534.0,42533.0,0.001]
[1704098555533,0.55685928,42534.0,42533.0,0.001]
[1704098556376,0.34083182,42534.0,42533.0,0.001]
[1704098557687,0.36951428,42534.0,42533.0,0.001]
[1704098558322,0.51064432,42534.0,42533.0,0.001]
[1704098558537,0.72667178,42534.0,42533.0,0.001]
[1704098558672,0.58554174,42534.0,42533.0,0.001]
[1704098559310,0.51064072,42534.0,42533.0,0.001]
[1704098559716,0.72666818,42534.0,42533.0,0.001]
[1704098561059,0.69798572,42534.0,42533.0,0.001]
[1704098563825,0.69798572,42534.0,42533.0,0.0271]
[1704098564296,0.69798572,42534.0,42533.0,0.001]
[1704098564815,0.69798572,42534.0,42533.0,0.2429]
[1704098566190,0.55685928,42534.0,42533.0,0.2429]
[1704098566389,0.66974792,42534.0,42533.0,0.2429]
[1704098568454,0.32364217,42534.0,42533.0,0.2429]
[1704098568710,0.06743901,42534.0,42533.0,0.34467933]
[1704098569097,0.011,42534.0,42533.0,0.34467933]
[1704098580104,0.011,42534.0,42533.0,0.30242]
[1704098581032,0.011,42534.0,42533.0,0.40242]
[1704098587054,0.011,42534.0,42533.0,0.3429]
[1704098587549,0.011,42534.0,42533.0,0.39162]
[1704098605464,0.011,42534.0,42533.0,0.3429]
[1704098605671,0.011,42534.0,42533.0,0.3882]
[1704098606835,0.011,42534.0,42533.0,0.3982]
[1704098607228,0.011,42534.0,42533.0,0.3529]
[1704098607391,0.011,42534.0,42533.0,0.4081]
[1704098607593,0.011,42534.0,42533.0,0.40282]
[1704098607807,0.011,42534.0,42533.0,0.3529]
[1704098608900,0.011,42534.0,42533.0,0.40798]
[1704098609416,0.011,42534.0,42533.0,0.3529]
[1704098609613,0.011,42534.0,42533.0,0.40522]
[1704098610223,0.011,42534.0,42533.0,0.3529]
[1704098611646,0.011,42534.0,42533.0,0.40546]
[1704098612069,0.011,42534.0,42533.0,0.39546]
[1704098612307,0.011,42534.0,42533.0,0.40546]
[1704098612933,0.011,42534.0,42533.0,0.3529]
[1704098614253,0.06743901,42534.0,42533.0,0.3529]
[1704098614647,0.011,42534.0,42533.0,0.3529]
[1704098614768,0.011,42534.0,42533.0,0.40516]
[1704098621443,0.011,42534.0,42533.0,0.3529]
[1704098621647,0.06743901,42534.0,42533.0,0.3529]
[1704098622104,0.011,42534.0,42533.0,0.3529]
[1704098624456,0.011,42534.0,42533.0,0.40516]
[1704098624977,0.011,42534.0,42533.0,0.3529]
[1704098625561,0.06745978,42534.0,42533.0,0.3529]
[1704098626083,0.06745978,42534.0,42533.0,0.40522]
[1704098626616,0.06745978,42534.0,42533.0,0.3529]
[1704098626821,0.06745978,42534.0,42533.0,0.2529]
[1704098627122,0.06745978,42534.0,42533.0,0.3036]
[1704098627255,0.011,42534.0,42533.0,0.36396]
[1704098627925,0.011,42534.0,42533.0,0.35396]
[1704098628142,0.011,42534.0,42533.0,0.36396]
[1704098628575,0.011,42534.0,42533.0,0.3036]
[1704098658824,0.06745978,42534.0,42533.0,0.3036]
[1704098659436,0.011,42534.0,42533.0,0.3036]
[1704098662815,0.06745978,42534.0,42533.0,0.3036]
[1704098664687,0.011,42534.0,42533.0,0.3036]
[1704098680461,0.06745978,42534.0,42533.0,0.3036]
[1704098680935,0.011,42534.0,42533.0,0.3036]
[1704098683945,0.011,42534.0,42533.0,0.36396]
[1704098688662,0.06745978,42534.0,42533.0,0.36396]
[1704098689252,0.011,42534.0,42533.0,0.36396]
[1704098689937,0.011,42534.0,42533.0,0.3036]
[1704098690154,0.06745978,42534.0,42533.0,0.3036]
[1704098693491,0.011,42534.0,42533.0,0.3036]
[1704098693923,0.06745978,42534.0,42533.0,0.3036]
[1704098694109,0.011,42534.0,42533.0,0.3036]
[1704098694461,0.06745978,42534.0,42533.0,0.3036]
[1704098697480,0.06745978,42534.0,42533.0,0.36396]
[1704098698302,0.06745978,42534.0,42533.0,0.3036]
[1704098706329,0.06745978,42534.0,42533.0,0.011]
[1704098706541,0.18368975,42534.0,42533.0,0.011]
[1704098706757,0.26547295,42534.0,42533.0,0.011]
[1704098706979,0.15255339,42534.0,42533.0,0.011]
[1704098707679,0.26547124,42534.0,42533.0,0.011]
[1704098708455,0.94257808,42534.0,42533.0,0.001]
[1704098708858,1.02536184,42534.0,42533.0,0.001]
[1704098709217,0.8559825,42534.0,42533.0,0.001]
[1704098711186,0.99698198,42534.0,42533.0,0.001]
[1704098711619,0.96877067,42534.0,42533.0,0.001]
[1704098714476,0.8559825,42534.0,42533.0,0.001]
[1704098714891,0.9405465,42534.0,42533.0,0.001]
[1704098715749,0.20892672,42534.0,42533.0,0.001]
[1704098715968,0.034,42534.0,42533.0,0.001]
[1704098716185,0.034,42534.0,42533.0,0.01487923]
[1704098718341,0.011,42534.0,42533.0,0.01487923]
[1704098718567,0.011,42534.0,42533.0,0.16689923]
[1704098719078,0.011,42534.0,42533.0,0.17689923]
[1704098722716,0.011,42534.0,42533.0,0.16302]
[1704098732192,0.005,42534.0,42533.0,0.16202]
[1704098732408,0.019,42534.0,42533.0,0.16202]
[1704098732861,0.005,42534.0,42533.0,0.16202]
[1704098735776,0.005,42534.0,42533.0,0.06202]
[1704098735979,0.005,42534.0,42533.0,0.01]
[1704098736409,0.08437333,42534.0,42533.0,0.01]
[1704098736607,0.028,42534.0,42533.0,0.01]
[1704098737012,0.08437333,42534.0,42533.0,0.01]
[1704098737250,0.16262892,42534.0,42533.0,0.01]
[1704098738152,0.028,42534.0,42533.0,0.01]
[1704098740092,0.033,42534.0,42533.0,0.01]
[1704098740306,0.028,42534.0,42533.0,0.01]
[1704098741608,0.042,42534.0,42533.0,0.01]
[1704098742065,0.028,42534.0,42533.0,0.01]
[1704098742507,0.033,42534.0,42533.0,0.01]
[1704098746310,0.01,42534.0,42533.0,0.093578]
[1704098747603,0.01,42534.0,42533.0,0.06382]
[1704098761695,0.01,42534.0,42533.0,0.16382]
[1704098788164,0.01,42534.0,42533.0,0.36382]
[1704098788467,0.01,42534.0,42533.0,0.39694]
[1704098788858,0.01,42534.0,42533.0,0.49186]
[1704098789071,0.01,42534.0,42533.0,0.57613549]
[1704098792903,0.01,42534.0,42533.0,0.8093526]
[1704098793122,0.01,42534.0,42533.0,0.8621326]
[1704098793337,0.01,42534.0,42533.0,1.24025451]
[1704098793584,0.01,42534.0,42533.0,1.42156474]
[1704098793796,0.01,42534.0,42533.0,1.52156474]
[1704098794216,0.005,42534.0,42533.0,1.52156474]
[1704098794430,0.005,42534.0,42533.0,1.40882975]
[1704098794637,0.005,42534.0,42533.0,1.49335579]
[1704098794906,0.68592585,42548.0,42545.0,0.01]
[1704098795164,0.023,42547.0,42545.0,0.01]
[1704098795369,0.023,42547.0,42546.0,0.05124]
[1704098795575,0.023,42547.0,42546.0,0.092164]
[1704098795791,0.018,42547.0,42546.0,0.092164]
[1704098796602,0.032,42547.0,42546.0,0.092164]
[1704098797014,0.014,42547.0,42546.0,0.402164]
[1704098797270,0.007,42547.0,42546.0,0.681484]
[1704098797461,0.012,42547.0,42546.0,0.681484]
[1704098797731,0.012,42547.0,42546.0,0.772204]
[1704098797919,0.012,42547.0,42546.0,0.681484]
[1704098798164,0.005,42547.0,42546.0,0.681484]
[1704098798354,0.005,42547.0,42546.0,0.774484]
[1704098798555,0.01,42547.0,42546.0,0.772624]
[1704098798722,0.005,42547.0,42546.0,0.772624]
[1704098799145,0.005,42547.0,42546.0,1.10584111]
[1704098799146,0.009,42547.0,42546.0,1.10584111]
[1704098799358,0.009,42547.0,42546.0,1.14370111]
[1704098799584,0.45989389,42548.0,42547.0,0.41]
[1704098799706,0.45989389,42548.0,42547.0,0.76392257]
[1704098799913,0.45989389,42548.0,42547.0,0.98112257]
[1704098800350,0.224865,42548.0,42547.0,0.88112257]
[1704098801009,0.226865,42548.0,42547.0,0.88812257]
[1704098801208,0.7075328,42552.0,42551.0,0.3]
[1704098801209,0.70525198,42552.0,42551.0,0.3]
[1704098801388,0.70525198,42552.0,42551.0,0.35540715]
[1704098801594,0.70525198,42552.0,42551.0,0.45266715]
[1704098802060,0.4702238,42552.0,42551.0,0.45266715]
[1704098802494,0.4702238,42552.0,42551.0,0.55046715]
[1704098802702,0.23621722,42552.0,42551.0,0.78868426]
[1704098802914,0.23621722,42552.0,42551.0,0.79868426]
[1704098803373,0.23521722,42552.0,42551.0,0.79368426]
[1704098803593,0.00021064,42552.0,42551.0,0.79368426]
[1704098803803,0.00121064,42552.0,42551.0,0.83766999]
[1704098804006,0.00121064,42552.0,42551.0,0.82766999]
[1704098804209,0.00121064,42552.0,42551.0,0.83766999]
[1704098804413,0.49534381,42555.0,42551.0,0.83766999]
[1704098804618,0.49534381,42555.0,42554.0,0.01]
[1704098805044,0.49534381,42555.0,42554.0,0.21328]
[1704098805258,0.37284487,42555.0,42554.0,0.51328]
[1704098806307,0.37584487,42555.0,42554.0,0.51328]
[1704098806535,0.37584487,42555.0,42554.0,0.64026875]
[1704098806762,0.37584487,42555.0,42554.0,0.68119275]
[1704098807568,0.37884487,42555.0,42554.0,0.68119275]
[1704098808824,0.26635371,42555.0,42554.0,0.68119275]
[1704098809451,0.0283637,42555.0,42554.0,0.68119275]
[1704098809858,0.0273637,42555.0,42554.0,0.91440986]
[1704098810075,0.0261,42562.0,42554.0,0.91440986]
[1704098810287,0.60062134,42558.0,42557.0,0.01]
[1704098810920,0.60062134,42558.0,42557.0,0.39628]
[1704098812362,0.60762134,42558.0,42557.0,0.39628]
[1704098812991,0.61462134,42558.0,42557.0,0.39728]
[1704098819388,0.60942039,42558.0,42557.0,0.48390529]
[1704098819590,0.60942039,42558.0,42557.0,0.55369008]
[1704098819993,0.60242039,42558.0,42557.0,0.46606479]
[1704098820194,0.36744694,42558.0,42557.0,0.46606479]
[1704098820410,0.36744694,42558.0,42557.0,0.46706479]
[1704098820411,0.37344694,42558.0,42557.0,0.46706479]
[1704098821009,0.13247349,42558.0,42557.0,0.53630687]
[1704098821438,0.12547349,42558.0,42557.0,0.53630687]
[1704098821870,0.0261,42562.0,42557.0,0.53630687]
[1704098821871,0.0181897,42563.0,42562.0,0.01]
[1704098822077,0.0181897,42563.0,42562.0,0.11]
[1704098822227,0.0181897,42563.0,42562.0,0.141]
[1704098823097,0.0181897,42563.0,42562.0,0.19584]
[1704098823271,0.0281897,42563.0,42562.0,0.19684]
[1704098823647,0.0281897,42563.0,42562.0,0.142]
[1704098824040,0.0381897,42563.0,42562.0,0.143]
[1704098824310,0.0381897,42563.0,42562.0,0.19946]
[1704098824519,0.0281897,42563.0,42562.0,0.19846]
[1704098824938,0.0281897,42563.0,42562.0,0.142]
[1704098825971,0.0381897,42563.0,42562.0,0.143]
[1704098828022,0.0381897,42563.0,42562.0,0.19538]
[1704098828494,0.0381897,42563.0,42562.0,0.143]
[1704098828739,0.0381897,42563.0,42562.0,0.2051]
[1704098839607,0.0381897,42563.0,42562.0,0.53488]
[1704098840495,0.0381897,42563.0,42562.0,0.43894]
[1704098840728,0.0381897,42563.0,42562.0,0.43794]
[1704098840931,0.0281897,42563.0,42562.0,0.43794]
[1704098841262,0.0181897,42563.0,42562.0,0.43694]
[1704098841463,0.0181897,42563.0,42562.0,0.43794]
[1704098841661,0.0271897,42563.0,42562.0,0.52954]
[1704098842062,0.0271897,42563.0,42562.0,0.43894]
[1704098842267,0.0181897,42563.0,42562.0,0.43794]
[1704098842494,0.0181897,42563.0,42562.0,0.52866]
[1704098842838,0.0181897,42563.0,42562.0,0.43994]
[1704098843042,0.0181897,42563.0,42562.0,0.43894]
[1704098843261,0.0181897,42563.0,42562.0,0.44094]
[1704098843918,0.0181897,42563.0,42562.0,0.86565711]
[1704098844150,0.0181897,42563.0,42562.0,0.87565711]
[1704098844377,0.23845081,42576.0,42573.0,0.11]
[1704098844588,0.09311012,42575.0,42573.0,0.11]
[1704098844797,0.03673679,42574.0,42573.0,0.11]
[1704098845012,0.11202414,42576.0,42573.0,0.14424]
[1704098845223,0.52836626,42577.0,42573.0,0.14424]
[1704098845502,0.11611092,42576.0,42573.0,0.14424]
[1704098845724,0.09311092,42575.0,42573.0,0.14524]
[1704098845933,0.09311092,42575.0,42574.0,0.014524]
[1704098846158,0.023,42575.0,42574.0,0.014524]
[1704098847247,0.13211188,42575.0,42574.0,0.014524]
[1704098847454,0.05973855,42575.0,42574.0,0.014524]
[1704098847637,0.023,42575.0,42574.0,0.014524]
[1704098847836,0.039,42575.0,42574.0,0.015524]
[1704098850360,0.055,42575.0,42574.0,0.016524]
[1704098850570,0.1113067,42575.0,42574.0,0.016524]
[1704098850866,0.055,42575.0,42574.0,0.016524]
[1704098851071,0.1113067,42575.0,42574.0,0.016524]
[1704098851202,0.055,42575.0,42574.0,0.016524]
[1704098854525,0.055,42575.0,42574.0,0.116524]
[1704098856263,0.14828685,42575.0,42574.0,0.116524]
[1704098857496,0.055,42575.0,42574.0,0.116524]
[1704098858501,0.032,42575.0,42574.0,0.116524]
[1704098858655,0.032,42575.0,42574.0,0.344024]
[1704098859105,0.032,42575.0,42574.0,0.116524]
[1704098859313,0.032,42575.0,42574.0,0.126524]
[1704098862030,0.03208502,42575.0,42574.0,0.126524]
[1704098867069,0.12537187,42575.0,42574.0,0.126524]
[1704098870873,0.03208502,42575.0,42574.0,0.126524]
[1704098873549,0.12537187,42575.0,42574.0,0.126524]
[1704098874462,0.03208502,42575.0,42574.0,0.126524]
[1704098875098,0.06882221,42575.0,42574.0,0.126524]
[1704098875602,0.03208502,42575.0,42574.0,0.126524]
[1704098876032,0.06882216,42575.0,42574.0,0.126524]
[1704098876854,0.16210901,42575.0,42574.0,0.126524]
[1704098877082,0.12537187,42575.0,42574.0,0.126524]
[1704098877262,0.16210879,42575.0,42574.0,0.126524]
[1704098878894,0.16210879,42575.0,42574.0,0.112]
[1704098879311,0.06882194,42575.0,42574.0,0.112]
[1704098880154,0.06882194,42575.0,42574.0,0.102]
[1704098880354,0.06882194,42575.0,42574.0,0.112]
[1704098882174,0.12512864,42575.0,42574.0,0.112]
[1704098882464,0.12512864,42575.0,42574.0,0.164558]
[1704098882637,0.21841549,42575.0,42574.0,0.164558]
[1704098883145,0.12512864,42575.0,42574.0,0.164558]
[1704098885248,0.15338594,42575.0,42574.0,0.154558]
[1704098885458,0.24667279,42575.0,42574.0,0.164558]
[1704098886133,0.16210879,42575.0,42574.0,0.164558]
[1704098886963,0.24665371,42575.0,42574.0,0.164558]
[1704098887389,0.24666508,42575.0,42574.0,0.164558]
[1704098887592,0.24666599,42575.0,42574.0,0.164558]
[1704098887975,0.16210879,42575.0,42574.0,0.164558]
[1704098888181,0.27489696,42575.0,42574.0,0.164558]
[1704098889655,0.18161011,42575.0,42574.0,0.164558]
[1704098892277,0.18161011,42575.0,42574.0,0.112]
[1704098892481,0.18161011,42575.0,42574.0,0.11]
[1704098892482,0.14961011,42575.0,42574.0,0.11]
[1704098892846,0.16561011,42575.0,42574.0,0.101]
[1704098893067,0.06982194,42575.0,42574.0,0.112]
[1704098893283,0.05282194,42575.0,42574.0,0.111]
[1704098893516,0.16563547,42575.0,42574.0,0.111]
[1704098893718,0.17463547,42575.0,42574.0,0.112]
[1704098893926,0.1746358,42575.0,42574.0,0.112]
[1704098894144,0.17463571,42575.0,42574.0,0.112]
[1704098894354,0.04582194,42575.0,42574.0,0.111]
[1704098894597,0.18682142,42575.0,42574.0,0.111]
[1704098894853,0.05482194,42575.0,42574.0,0.112]
[1704098895069,0.16763469,42575.0,42574.0,0.112]
[1704098895514,0.05482194,42575.0,42574.0,0.102]
[1704098895728,0.16763669,42575.0,42574.0,0.112]
[1704098896169,0.05482194,42575.0,42574.0,0.112]
[1704098896392,0.19582142,42575.0,42574.0,0.112]
[1704098896620,0.16764008,42575.0,42574.0,0.112]
[1704098898200,0.13943408,42575.0,42574.0,0.112]
[1704098898414,0.13943364,42575.0,42574.0,0.112]
[1704098899077,0.13943364,42575.0,42574.0,0.260654]
[1704098899301,0.01808502,42575.0,42574.0,0.331214]
[1704098900404,0.01808502,42575.0,42574.0,0.431214]
[1704098911296,0.01808502,42575.0,42574.0,0.51493055]
[1704098915345,0.01808502,42575.0,42574.0,0.431214]
[1704098915946,0.01808502,42575.0,42574.0,0.47768604]
[1704098916179,0.01808502,42575.0,42574.0,0.81090315]
[1704098916405,0.01808502,42575.0,42574.0,0.96222315]
[1704098916610,0.01808502,42575.0,42574.0,1.20102315]
[1704098917693,0.00908502,42575.0,42574.0,1.20002315]
[1704098918135,0.01208502,42575.0,42574.0,1.20002315]
[1704098918549,8.502e-05,42575.0,42574.0,1.19902315]
[1704098918963,0.00208502,42575.0,42574.0,1.21202315]
[1704098919169,0.00108502,42575.0,42574.0,1.20702315]
[1704098919720,0.00208502,42575.0,42574.0,1.21502315]
[1704098927054,0.00208502,42575.0,42574.0,1.22502315]